bitfinex-derivatives/quotes_ETHF0:USTF0_20250709
["timestamp","ask_amount","ask_price","bid_price","bid_amount"]
[1752021724028,0.7662,2609.7,2609.5,52.074]
[1752021724228,0.76617,2609.8,2609.6,2.06303221]
[1752021724423,0.76617,2609.8,2609.6,2.06878981]
[1752021724626,0.76618,2609.7,2609.6,2.06878981]
[1752021725328,1.42388,2609.7,2609.6,2.06878981]
[1752021725632,0.76618,2609.7,2609.6,2.06878981]
[1752021725832,1.42388,2609.7,2609.6,2.06878981]
[1752021726225,1.42388,2609.7,2609.6,1.30257981]
[1752021727028,0.76618,2609.7,2609.6,1.30257981]
[1752021727231,0.76618,2609.7,2609.6,3.70478981]
[1752021727433,0.76617,2609.8,2609.7,0.76618]
[1752021727731,0.76617,2609.8,2609.7,0.6773]
[1752021727930,1.42387,2609.8,2609.7,0.6773]
[1752021728729,1.42387,2609.8,2609.7,2.3133]
[1752021729131,1.42387,2609.8,2609.7,1.3436]
[1752021729430,1.42387,2609.8,2609.7,0.6663]
[1752021731531,1.42387,2609.8,2609.7,1.636]
[1752021731833,1.42387,2609.8,2609.7,2.3094]
[1752021735036,1.42387,2609.8,2609.7,3.07558]
[1752021735238,3.2078,2610.2,2609.7,3.60622221]
[1752021735543,3.97383,2610.2,2610.1,1.29682221]
[1752021735737,3.97383,2610.2,2610.1,1.96312221]
[1752021735942,3.97383,2610.2,2610.1,0.6663]
[1752021736243,4.63153,2610.2,2610.1,0.6663]
[1752021736743,5.88443,2610.2,2610.1,0.6663]
[1752021737038,5.88443,2610.2,2610.1,2.93282221]
[1752021737236,4.63153,2610.2,2610.1,2.93282221]
[1752021737635,3.2078,2610.2,2610.1,3.69888221]
[1752021738545,3.97373,2610.6,2610.4,0.76596]
[1752021738745,3.97373,2610.6,2610.1,53.696]
[1752021738746,3.97373,2610.6,2610.5,3.60212221]
[1752021740545,4.63143,2610.6,2610.5,3.60212221]
[1752021742252,4.63143,2610.6,2610.5,2.3053]
[1752021744651,4.63143,2610.6,2610.5,1.3356]
[1752021746356,1.42363,2610.6,2610.5,1.3356]
[1752021746956,1.42363,2610.6,2610.5,2.3765]
[1752021753457,0.6651,2610.8,2610.7,0.76589]
[1752021753656,3.97358,2611.1,2610.7,3.00202221]
[1752021753858,3.97358,2611.1,2610.9,0.7658]
[1752021754054,3.97358,2611.1,2611.0,1.7052]
[1752021754255,3.2078,2611.1,2611.0,2.471]
[1752021754460,3.97357,2611.1,2611.0,2.471]
[1752021754760,3.97357,2611.1,2611.0,1.7052]
[1752021754959,4.65157,2611.1,2611.0,3.00202221]
[1752021755161,3.97357,2611.1,2611.0,3.00202221]
[1752021758165,3.97357,2611.1,2611.0,3.76782221]
[1752021758366,3.2078,2611.1,2611.0,3.76782221]
[1752021758764,3.2078,2611.1,2611.0,5.06332221]
[1752021758964,3.97357,2611.1,2611.0,5.06332221]
[1752021759164,3.2078,2611.1,2611.0,5.06332221]
[1752021760966,3.2078,2611.1,2611.0,3.76782221]
[1752021763169,3.97357,2611.1,2611.0,3.76782221]
[1752021763663,3.2078,2611.1,2611.0,3.76782221]
[1752021763869,3.97357,2611.1,2611.0,3.76782221]
[1752021764368,3.97357,2611.1,2611.0,0.6643]
[1752021764767,4.65157,2611.1,2611.0,0.6643]
[1752021764970,4.65157,2611.1,2611.0,2.471]
[1752021765164,4.65157,2611.1,2611.0,3.76782221]
[1752021765468,3.2078,2611.1,2611.0,3.76782221]
[1752021766071,3.97357,2611.1,2611.0,3.76782221]
[1752021767872,3.2078,2611.1,2611.0,3.76782221]
[1752021771779,0.76574,2611.2,2611.1,0.76577]
[1752021771974,0.76574,2611.2,2611.1,53.3737]
[1752021772175,0.76574,2611.2,2611.1,54.4146]
[1752021772584,0.6377,2611.2,2611.1,55.18037]
[1752021773281,1.40344,2611.2,2611.1,55.18037]
[1752021773482,0.6377,2611.2,2611.1,55.18037]
[1752021776781,1.9852,2611.2,2611.1,55.18037]
[1752021776988,1.3968,2611.4,2611.3,0.76571]
[1752021777184,1.3968,2611.4,2611.3,2.72633221]
[1752021777384,2.0345,2611.4,2611.3,3.73493221]
[1752021778285,2.0345,2611.4,2611.3,2.72633221]
[1752021778486,1.2688,2611.4,2611.3,2.72633221]
[1752021778691,1.2688,2611.4,2611.3,3.73493221]
[1752021779383,2.03448,2611.4,2611.3,55.76193221]
[1752021779590,2.03448,2611.4,2611.3,54.99622221]
[1752021780183,3.18301,2611.4,2611.1,1.69424647]
[1752021780388,0.76574,2611.2,2611.1,26.01874647]
[1752021780583,0.76574,2611.2,2611.1,26.68254647]
[1752021780789,1.40344,2611.2,2611.1,26.68254647]
[1752021781493,1.40344,2611.2,2611.1,28.45690647]
[1752021781992,1.40344,2611.2,2611.1,27.69114647]
[1752021782492,1.40344,2611.2,2611.1,29.98417746]
[1752021783991,1.40344,2611.2,2611.1,28.97557746]
[1752021784189,1.40344,2611.2,2611.1,28.31177746]
[1752021784495,1.40344,2611.2,2611.1,28.97557746]
[1752021789593,1.40344,2611.2,2611.1,2.96257746]
[1752021789799,1.40344,2611.2,2611.1,28.97457746]
[1752021792900,1.40344,2611.2,2611.1,29.98317746]
[1752021794702,1.40344,2611.2,2611.1,30.74894746]
[1752021794902,1.40344,2611.2,2611.1,28.45591647]
[1752021795201,1.40344,2611.2,2611.1,27.69014647]
[1752021795400,1.40344,2611.2,2611.1,28.45591647]
[1752021795601,1.40344,2611.2,2611.1,27.69014647]
[1752021796003,1.40344,2611.2,2611.1,29.98623732]
[1752021796203,1.40344,2611.2,2611.1,27.69014647]
[1752021798806,1.40344,2611.2,2611.1,28.7228227]
[1752021799006,1.40344,2611.2,2611.1,27.7142227]
[1752021800405,1.40344,2611.2,2611.1,28.97605904]
[1752021800906,2.70144,2611.2,2611.1,28.97605904]
[1752021801407,8.992427,2611.2,2610.7,29.45633997]
[1752021801706,0.76586,2610.8,2610.7,31.1373162]
[1752021801900,0.76586,2610.8,2610.7,31.7882162]
[1752021802106,0.76586,2610.8,2610.7,32.7968162]
[1752021802299,1.44976,2610.8,2610.7,32.7968162]
[1752021802499,2.15267298,2610.8,2610.7,29.35047623]
[1752021802698,2.15267298,2610.8,2610.7,30.11636623]
[1752021802699,1.38681298,2610.8,2610.7,30.11636623]
[1752021803007,2.83657298,2610.8,2610.7,1.2992]
[1752021803202,2.83657298,2610.8,2610.7,27.3092]
[1752021803412,2.83657298,2610.8,2610.7,30.39024189]
[1752021804308,2.83657298,2610.8,2610.7,29.62435189]
[1752021804503,2.83636242,2610.8,2610.7,29.62435189]
[1752021805709,1.44976,2610.8,2610.7,29.62435189]
[1752021806614,1.44976,2610.8,2610.7,28.60035189]
[1752021806803,2.83627909,2610.8,2610.7,0.6509]
[1752021807007,0.76592,2610.6,2610.5,2.98285189]
[1752021807208,0.76592,2610.6,2610.5,29.64475189]
[1752021808309,1.44982,2610.6,2610.5,29.64475189]
[1752021814113,1.44982,2610.6,2610.5,2.3426]
[1752021814419,1.44982,2610.6,2610.5,27.3306]
[1752021814716,2.74232,2610.6,2610.5,27.3306]
[1752021815617,2.74232,2610.6,2610.5,28.3546]
[1752021816318,2.74232,2610.6,2610.5,27.3306]
[1752021816618,1.44982,2610.6,2610.5,28.3546]
[1752021817618,1.44982,2610.6,2610.5,29.64575189]
[1752021818019,1.91451,2611.0,2610.5,30.41168189]
[1752021818319,0.76583,2610.9,2610.8,1.29115189]
[1752021818614,2.1523222,2610.9,2610.8,0.6509]
[1752021819015,4.1262222,2610.9,2610.8,0.6509]
[1752021819714,4.1262222,2610.9,2610.5,0.6677]
[1752021819715,5.2749722,2610.9,2610.5,0.6677]
[1752021820020,0.76592,2610.6,2610.5,27.7037]
[1752021820219,0.76592,2610.6,2610.5,28.3546]
[1752021820619,1.44982,2610.6,2610.5,28.3546]
[1752021821818,1.44982,2610.6,2610.5,29.64575189]
[1752021832719,1.44982,2610.6,2610.5,27.3296]
[1752021832926,2.82582,2610.6,2610.5,27.3296]
[1752021833324,2.82582,2610.6,2610.5,28.2717]
[1752021836330,4.22342893,2610.6,2610.5,28.2717]
[1752021836522,2.84742893,2610.6,2610.5,29.56285189]
[1752021836829,0.76588,2610.8,2610.6,0.76591]
[1752021837031,0.76588,2610.8,2610.7,1.95675189]
[1752021837428,2.16352198,2610.8,2610.7,2.89885189]
[1752021838329,2.80802198,2610.8,2610.7,2.89885189]
[1752021838529,2.16352198,2610.8,2610.7,2.89885189]
[1752021838931,2.80802198,2610.8,2610.7,2.89885189]
[1752021840121,2.80802198,2610.8,2610.7,0.6656]
[1752021843827,3.43972198,2610.8,2610.7,0.6656]
[1752021847825,3.43972198,2610.8,2610.5,26.6777]
[1752021847826,0.76592,2610.6,2610.5,24.09682025]
[1752021848032,1.39764198,2610.6,2610.5,19.88264885]
[1752021848231,1.39764198,2610.6,2610.5,19.88839532]
[1752021848534,2.16356198,2610.6,2610.5,20.55399532]
[1752021848734,6.74037181,2610.6,2610.5,20.55399532]
[1752021848929,7.38487181,2610.6,2610.5,0.67134647]
[1752021849336,6.74038187,2610.6,2610.5,0.67134647]
[1752021849736,1.41042,2610.6,2610.5,3.31905915]
[1752021849938,0.83306632,2610.7,2610.5,3.91767071]
[1752021850238,1.41042,2610.6,2610.5,2.96899041]
[1752021850539,1.41042,2610.6,2610.5,3.91766303]
[1752021850734,1.41042,2610.6,2610.5,2.89625996]
[1752021850945,0.6445,2610.6,2610.5,0.6656]
[1752021851342,1.41042,2610.6,2610.5,0.6656]
[1752021851542,1.41042,2610.6,2610.5,2.96319723]
[1752021852441,1.41042,2610.6,2610.5,1.95675189]
[1752021852641,1.41042,2610.6,2610.5,3.44516189]
[1752021853840,1.41042,2610.6,2610.5,2.15401]
[1752021854742,1.41042,2610.6,2610.5,1.21191]
[1752021855446,3.2078,2610.7,2610.5,3.44516189]
[1752021855648,3.9737,2610.7,2610.6,0.54631]
[1752021855944,3.47566983,2610.7,2610.6,2.15401]
[1752021856240,2.70976983,2610.7,2610.6,2.91993]
[1752021856642,2.70976983,2610.7,2610.6,4.23373]
[1752021856846,0.76589,2610.7,2610.6,4.23373]
[1752021858645,0.76589,2610.7,2610.6,3.46781]
[1752021858846,3.1021434,2611.0,2610.6,3.46781]
[1752021859149,3.8679434,2611.0,2610.9,1.72310045]
[1752021859344,4.5124434,2611.0,2610.9,2.26941045]
[1752021859544,4.5124434,2611.0,2610.9,2.93501045]
[1752021859744,4.13892333,2611.0,2610.9,2.26941045]
[1752021860145,1.4103,2611.0,2610.9,2.93501045]
[1752021860340,1.4103,2611.0,2610.9,0.54631]
[1752021860545,1.4103,2611.0,2610.9,1.18571]
[1752021860843,1.4103,2611.0,2610.9,2.12781]
[1752021860844,0.7658,2611.0,2610.9,2.12781]
[1752021861044,1.44228,2611.1,2610.9,3.41896189]
[1752021861251,1.44228,2611.1,2611.0,1.48841]
[1752021861451,1.44228,2611.1,2611.0,2.78272733]
[1752021861652,2.09068,2611.1,2611.0,2.78272733]
[1752021861949,1.41418,2611.1,2611.0,3.54852733]
[1752021862249,1.41418,2611.1,2611.0,2.7826956]
[1752021862954,1.41418,2611.1,2611.0,3.38124556]
[1752021863252,1.41418,2611.1,2611.0,3.38121949]
[1752021864051,1.41418,2611.1,2611.0,4.14701949]
[1752021864752,1.16518322,2611.1,2611.0,1.78411949]
[1752021864952,1.16518322,2611.1,2611.0,1.14471949]
[1752021865250,0.00574647,2611.4,2611.0,4.99191949]
[1752021865449,0.77142647,2611.4,2611.3,1.72171642]
[1752021865648,1.41982647,2611.4,2611.3,2.86643591]
[1752021866152,1.41982647,2611.4,2611.3,1.14471949]
[1752021867845,0.6484,2611.4,2611.3,1.14471949]
[1752021868454,1.41408,2611.4,2611.3,1.78411949]
[1752021868957,2.10758,2611.4,2611.3,1.78411949]
[1752021869156,2.10758,2611.4,2611.3,3.50387511]
[1752021869757,1.73412721,2611.4,2611.3,3.50387511]
[1752021870256,2.72042721,2611.4,2611.3,3.50387511]
[1752021870457,7.2193791,2611.4,2611.3,2.86447511]
[1752021870957,6.59692476,2611.4,2611.3,2.86447511]
[1752021871149,7.36260476,2611.4,2611.3,2.86447511]
[1752021873658,7.36260476,2611.4,2611.3,1.14471949]
[1752021873857,5.87834554,2611.4,2611.3,1.78411949]
[1752021874057,6.52674554,2611.4,2611.3,1.14471949]
[1752021874260,7.51304554,2611.4,2611.3,1.14471949]
[1752021874755,6.52674554,2611.4,2611.3,1.14471949]
[1752021876161,4.58719365,2611.4,2611.3,1.78411949]
[1752021876658,5.23559365,2611.4,2611.3,2.42411949]
[1752021877562,1.41408,2611.4,2611.3,5.15402778]
[1752021878161,0.76568,2611.4,2611.3,6.44517967]
[1752021878460,0.76568,2611.4,2611.3,5.15402778]
[1752021879757,0.19449681,2611.6,2611.3,5.15402778]
[1752021879963,0.76565,2611.5,2611.4,2.8631704]
[1752021880157,0.76565,2611.5,2611.4,4.5139704]
[1752021880858,4.46033189,2611.8,2611.4,4.5139704]
[1752021881165,0.76562,2611.6,2611.5,2.15611949]
[1752021881463,0.76562,2611.6,2611.5,2.79551949]
[1752021881464,1.41402,2611.6,2611.5,2.79551949]
[1752021882965,1.41402,2611.6,2611.5,1.78411949]
[1752021883164,1.41402,2611.6,2611.5,2.79551949]
[1752021883963,1.41402,2611.6,2611.5,1.78411949]
[1752021884165,1.41402,2611.6,2611.5,2.3899248]
[1752021884367,1.41402,2611.6,2611.5,2.95640087]
[1752021884668,1.41402,2611.6,2611.5,3.96780087]
[1752021886471,1.41402,2611.6,2611.5,2.95640087]
[1752021887068,1.41402,2611.6,2611.5,2.35785091]
[1752021887269,1.41402,2611.6,2611.5,3.36925091]
[1752021887473,1.41402,2611.6,2611.5,2.35785091]
[1752021887972,1.41402,2611.6,2611.5,3.36925091]
[1752021888376,1.41402,2611.6,2611.5,1.6508]
[1752021889876,1.41402,2611.6,2611.5,0.6394]
[1752021890376,1.41402,2611.6,2611.5,1.6508]
[1752021891675,1.41402,2611.6,2611.5,0.6394]
[1752021892470,1.41402,2611.6,2611.5,1.6626]
[1752021892775,1.41402,2611.6,2611.5,3.95383096]
[1752021893175,1.41402,2611.6,2611.5,2.93063096]
[1752021895670,0.76565,2611.5,2611.4,2.29123096]
[1752021895877,3.41480189,2611.5,2611.4,2.94873096]
[1752021897278,2.12365,2611.5,2611.4,2.94873096]
[1752021897479,2.74450189,2611.5,2611.4,2.94873096]
[1752021898475,3.41480189,2611.5,2611.4,2.94873096]
[1752021900880,3.41480189,2611.5,2611.4,0.6575]
[1752021901280,4.75940189,2611.5,2611.4,2.94873096]
[1752021901582,4.75940189,2611.5,2611.4,0.6575]
[1752021902176,4.75940189,2611.5,2611.3,2.93123096]
[1752021902375,3.97348,2611.4,2611.3,2.29123096]
[1752021902580,6.94938,2611.4,2611.3,2.29123096]
[1752021903476,5.98838,2611.4,2611.3,2.94873096]
[1752021904681,5.98838,2611.4,2611.3,0.6575]
[1752021905082,5.31808,2611.4,2611.3,0.6575]
[1752021905279,2.11028,2611.4,2611.3,0.6575]
[1752021905483,2.78058,2611.4,2611.3,0.6575]
[1752021909287,2.11028,2611.4,2611.3,4.10396591]
[1752021909782,2.78058,2611.4,2611.3,4.10396591]
[1752021912390,2.78058,2611.4,2611.3,2.95363225]
[1752021913689,28.77958,2611.4,2611.3,2.95363225]
[1752021913886,2.78058,2611.4,2611.3,3.64813225]
[1752021914087,28.77958,2611.4,2611.3,3.64813225]
[1752021914792,27.43498,2611.4,2611.3,4.67133225]
[1752021915692,27.43498,2611.4,2611.3,3.64813225]
[1752021919997,27.43398,2611.4,2611.3,3.64813225]
[1752021920899,0.6703,2611.4,2611.3,5.43704225]
[1752021921200,0.76567,2611.5,2611.3,5.43704225]
[1752021921201,0.76563,2611.6,2611.4,0.76566]
[1752021921398,26.76363,2611.6,2611.5,1.40225]
[1752021921596,26.76363,2611.6,2611.5,2.42545]
[1752021921796,26.76363,2611.6,2611.5,3.95592074]
[1752021922299,27.40673,2611.6,2611.5,3.95592074]
[1752021922499,26.76363,2611.6,2611.5,1.6598]
[1752021923094,27.40673,2611.6,2611.5,1.6598]
[1752021923697,26.76363,2611.6,2611.5,1.6598]
[1752021924100,27.40673,2611.6,2611.5,3.95604101]
[1752021926100,27.40573,2611.6,2611.5,3.95604101]
[1752021926604,27.40573,2611.6,2611.5,2.29624101]
[1752021926805,0.76565,2611.5,2611.4,2.29624101]
[1752021927106,2.69990189,2611.5,2611.4,2.93284101]
[1752021930598,4.70830189,2611.5,2611.4,2.93284101]
[1752021935800,3.39250189,2611.5,2611.4,3.93524101]
[1752021936803,3.39250189,2611.5,2611.4,2.93284101]
[1752021937308,3.39250189,2611.5,2611.4,3.93524101]
[1752021939908,3.39250189,2611.5,2611.4,2.93284101]
[1752021942009,3.39250189,2611.5,2611.4,3.93524101]
[1752021943012,3.39250189,2611.5,2611.4,2.93284101]
[1752021944712,27.40375,2611.5,2611.4,5.08546591]
[1752021945011,28.43630517,2611.5,2611.4,5.08546591]
[1752021945212,28.43630517,2611.5,2611.4,1.639]
[1752021946008,28.43630517,2611.5,2611.4,3.93572678]
[1752021946410,28.43630517,2611.5,2611.4,2.93332678]
[1752021948613,2.44130517,2611.5,2611.4,3.93572678]
[1752021948819,27.79220517,2611.5,2611.4,2.40468]
[1752021949018,27.79220517,2611.5,2611.4,1.639]
[1752021949715,28.43530517,2611.5,2611.4,1.639]
[1752021951419,27.66965517,2611.5,2611.4,2.40468]
[1752021951716,28.43530517,2611.5,2611.4,1.639]
[1752021952414,28.43530517,2611.5,2611.4,3.93585654]
[1752021952818,28.43530517,2611.5,2611.4,4.70153654]
[1752021953020,28.43530517,2611.5,2611.4,3.93585654]
[1752021953621,28.43530517,2611.5,2611.4,4.70153654]
[1752021954122,28.43530517,2611.5,2611.4,3.93585654]
[1752021954421,2.44130517,2611.5,2611.4,4.70153654]
[1752021954719,28.43430517,2611.5,2611.4,4.70153654]
[1752021955218,28.43430517,2611.5,2611.4,3.93585654]
[1752021955425,2.44130517,2611.5,2611.4,3.93585654]
[1752021955624,28.43430517,2611.5,2611.4,3.93585654]
[1752021957529,28.43430517,2611.5,2611.4,4.70153654]
[1752021957828,28.43430517,2611.5,2611.4,3.69913654]
[1752021958324,28.43430517,2611.5,2611.4,2.93345654]
[1752021959924,27.66865517,2611.5,2611.4,3.69913654]
[1752021960225,28.43430517,2611.5,2611.4,3.69913654]
[1752021960420,27.66865517,2611.5,2611.4,3.69913654]
[1752021960617,28.43430517,2611.5,2611.4,2.93345654]
[1752021961824,28.43430517,2611.5,2611.4,0.6366]
[1752021962432,28.43430517,2611.5,2611.4,2.93345654]
[1752021963026,30.46560517,2611.5,2611.4,2.93345654]
[1752021966032,31.45620517,2611.5,2611.4,2.29685654]
[1752021966236,0.76568,2611.4,2611.3,2.29685654]
[1752021966538,3.86903517,2611.4,2611.3,2.29685654]
[1752021966837,4.85963517,2611.4,2611.3,2.29685654]
[1752021967734,3.86903517,2611.4,2611.3,2.98115654]
[1752021967935,3.86903517,2611.4,2611.3,2.29685654]
[1752021968533,3.86903517,2611.4,2611.3,2.98115654]
[1752021969339,3.86903517,2611.4,2611.3,0.6843]
[1752021969537,0.76571,2611.3,2611.2,2.29685654]
[1752021969738,28.78591,2611.3,2611.2,2.98115654]
[1752021969928,2.79391,2611.3,2611.2,2.98115654]
[1752021970133,26.75671,2611.3,2611.2,3.98975654]
[1752021970333,27.44291,2611.3,2611.2,3.98975654]
[1752021970630,1.45191,2611.3,2611.2,3.98975654]
[1752021970832,27.44291,2611.3,2611.2,3.98975654]
[1752021974839,27.44291,2611.3,2611.2,2.98115654]
[1752021975540,27.44291,2611.3,2611.2,3.98975654]
[1752021976242,1.45191,2611.3,2611.2,3.98975654]
[1752021976437,27.44291,2611.3,2611.2,3.98975654]
[1752021978036,25.991,2611.3,2611.2,2.72545517]
[1752021978342,25.991,2611.5,2611.3,0.7657]
[1752021978542,26.75665,2611.5,2611.4,2.40596902]
[1752021978743,26.75665,2611.5,2611.4,3.41456902]
[1752021979737,27.44285,2611.5,2611.4,3.41456902]
[1752021979941,26.75665,2611.5,2611.4,3.41456902]
[1752021980542,27.44285,2611.5,2611.4,3.41456902]
[1752021982042,26.75565,2611.5,2611.4,3.41456902]
[1752021982541,26.75565,2611.5,2611.4,4.18024902]
[1752021983444,27.40575,2611.5,2611.4,4.18024902]
[1752021983645,26.75565,2611.5,2611.4,2.45858]
[1752021983944,26.75565,2611.5,2611.4,4.1803924]
[1752021984136,26.75565,2611.5,2611.4,4.18039051]
[1752021984340,26.75565,2611.5,2611.4,2.45858]
[1752021984545,27.40575,2611.5,2611.4,2.45858]
[1752021984746,26.75565,2611.5,2611.4,2.45858]
[1752021984945,26.75565,2611.5,2611.4,1.6929]
[1752021985247,1.41575,2611.5,2611.4,1.6929]
[1752021985545,27.40475,2611.5,2611.4,3.9884587]
[1752021985747,27.40475,2611.5,2611.4,1.6929]
[1752021986346,27.40475,2611.5,2611.4,3.9884587]
[1752021986549,27.40475,2611.5,2611.4,1.6929]
[1752021989847,27.40475,2611.5,2611.4,2.45858]
[1752021991644,27.40475,2611.5,2611.4,1.6929]
[1752021992150,27.40475,2611.5,2611.4,2.45858]
[1752021992348,27.40475,2611.5,2611.4,1.6929]
[1752021992543,27.40475,2611.5,2611.4,3.98815233]
[1752021992744,27.40475,2611.5,2611.4,4.75383233]
[1752021992944,27.40275,2611.5,2611.4,3.49113517]
[1752021994248,0.6501,2611.5,2611.4,3.49113517]
[1752021994446,25.986,2611.6,2611.4,2.72545517]
[1752021994652,26.75162,2611.6,2611.5,3.32543986]
[1752021994949,27.40172,2611.6,2611.5,4.00023986]
[1752021995147,27.40172,2611.6,2611.5,1.7054]
[1752021996351,1.41572,2611.6,2611.5,1.7054]
[1752021997649,1.41572,2611.6,2611.5,2.96879968]
[1752021997848,1.41572,2611.6,2611.5,0.6748]
[1752021998247,1.41572,2611.6,2611.5,2.96863017]
[1752021999250,2.79402,2611.6,2611.5,2.96863017]
[1752021999746,2.79402,2611.6,2611.5,2.29383017]
[1752022000548,2.79402,2611.6,2611.5,2.96863017]
[1752022000953,0.76565,2611.5,2611.4,2.29383017]
[1752022001154,4.46850517,2611.5,2611.4,2.29383017]
[1752022001345,5.44640517,2611.5,2611.4,2.29383017]
[1752022001856,5.44640517,2611.5,2611.3,2.29383017]
[1752022001857,0.76568,2611.4,2611.3,2.29383017]
[1752022002057,6.93138,2611.4,2611.3,2.29383017]
[1752022002258,47.73138,2611.4,2611.3,2.29383017]
[1752022002458,0.76571,2611.3,2611.2,2.29383017]
[1752022002754,29.76226517,2611.3,2611.2,2.29383017]
[1752022003056,30.99880542,2611.3,2611.2,2.29383017]
[1752022005457,30.99880542,2611.3,2611.1,3.44646591]
[1752022005458,0.76574,2611.2,2611.1,2.29383017]
[1752022005759,4.40344,2611.2,2611.1,2.29383017]
[1752022006063,0.76577,2611.1,2611.0,2.29383017]
[1752022006254,34.25946542,2611.1,2611.0,2.29383017]
[1752022006555,34.25946542,2611.1,2610.5,4.59528788]
[1752022006556,0.76592,2610.6,2610.5,4.59528788]
[1752022006754,29.95872,2610.6,2610.5,3.47089066]
[1752022007056,1.91496,2610.4,2609.7,6.77470985]
[1752022007259,0.76613,2609.9,2609.7,6.77470985]
[1752022007458,0.76611,2610.0,2609.8,0.6748]
[1752022007659,0.76608,2610.1,2609.8,1.44095]
[1752022008456,0.76609,2610.0,2609.8,1.44095]
[1752022008657,0.76608,2610.1,2609.8,1.44095]
[1752022009661,0.76608,2610.1,2609.9,0.76612]
[1752022010261,1.41618,2610.1,2610.0,1.3503]
[1752022010462,1.41268,2610.1,2610.0,1.3503]
[1752022012958,1.41268,2610.1,2610.0,2.2953]
[1752022019173,1.41268,2610.1,2610.0,1.3503]
[1752022019371,2.70387542,2610.1,2610.0,0.6755]
[1752022019569,0.76618,2609.7,2609.6,4.1528]
[1752022019774,0.76618,2609.7,2609.6,5.4465]
[1752022020578,0.76617,2609.8,2609.6,6.21271]
[1752022020778,0.76617,2609.8,2609.7,0.945]
[1752022020979,0.76617,2609.8,2609.7,1.5835]
[1752022021676,1.41277,2609.8,2609.7,1.5835]
[1752022022875,1.41277,2609.8,2609.7,2.34968]
[1752022023280,1.41277,2609.8,2609.7,1.5835]
[1752022023680,4.49578542,2610.1,2609.7,1.5835]
[1752022023681,0.76613,2609.9,2609.8,0.76615]
[1752022023981,0.76613,2609.9,2609.8,2.34965]
[1752022024379,0.76611,2610.0,2609.8,3.64082542]
[1752022024683,0.76611,2610.0,2609.8,2.69582542]
[1752022024879,0.76611,2610.0,2609.9,0.76612]
[1752022025086,40.80574647,2610.2,2609.9,0.76612]
[1752022025087,0.76608,2610.1,2610.0,0.76608]
[1752022025287,0.76608,2610.1,2610.0,1.29119542]
[1752022025584,0.76608,2610.1,2610.0,1.92969542]
[1752022025784,0.76608,2610.1,2610.0,2.87469542]
[1752022027081,0.76608,2610.1,2610.0,1.5835]
[1752022027484,0.76608,2610.1,2610.0,0.6385]
[1752022027485,1.41268,2610.1,2610.0,0.6385]
[1752022029089,0.76616,2609.8,2609.7,0.945]
[1752022029290,0.76614,2609.9,2609.7,2.34968]
[1752022029490,0.76614,2609.9,2609.7,1.40468]
[1752022029689,0.76614,2609.9,2609.8,0.945]
[1752022029891,1.41274,2609.9,2609.8,1.5835]
[1752022033194,1.41274,2609.9,2609.8,0.6385]
[1752022034794,0.76618,2609.7,2609.6,4.1528]
[1752022035095,1.41278,2609.7,2609.6,4.7913]
[1752022036999,1.41278,2609.7,2609.6,5.55751]
[1752022038203,0.76618,2609.7,2609.6,5.55751]
[1752022040402,0.76618,2609.7,2609.6,6.21171]
[1752022041407,0.76617,2609.8,2609.7,0.76616]
[1752022041701,1.40577,2609.8,2609.7,2.39476]
[1752022045905,1.40575,2609.8,2609.7,2.39476]
[1752022046407,1.40575,2609.8,2609.7,1.44976]
[1752022047002,0.6396,2609.8,2609.7,1.44976]
[1752022047405,1.40575,2609.8,2609.7,0.6836]
[1752022047908,0.6396,2609.8,2609.7,1.44978]
[1752022048407,0.6396,2609.8,2609.7,0.6836]
[1752022049008,0.6396,2609.8,2609.7,1.44978]
[1752022049204,0.6396,2609.8,2609.7,4.87485566]
[1752022049607,1.40575,2609.8,2609.7,5.08307566]
[1752022052307,0.6396,2609.8,2609.7,5.08307566]
[1752022052609,1.40575,2609.8,2609.7,5.08307566]
[1752022055010,1.40575,2609.8,2609.7,5.84925566]
[1752022055210,1.40575,2609.8,2609.7,5.08307566]
[1752022056014,1.989,2610.0,2609.7,5.08307566]
[1752022056209,2.15351517,2609.9,2609.8,1.74054]
[1752022056511,2.15351517,2609.9,2609.8,2.42414]
[1752022056907,2.79311517,2609.9,2609.8,2.42414]
[1752022058307,2.79311517,2609.9,2609.8,5.84921566]
[1752022058509,2.79311517,2609.9,2609.8,1.658]
[1752022059101,2.79311517,2609.9,2609.8,5.84922566]
[1752022066411,2.02698517,2609.9,2609.8,5.84922566]
[1752022067214,2.79310517,2609.9,2609.8,5.84922566]
[1752022068811,1.38738517,2609.9,2609.8,6.88290556]
[1752022069007,0.00574647,2610.2,2610.1,0.76606]
[1752022069207,0.00574647,2610.2,2610.1,2.4833399]
[1752022069410,1.39256862,2610.2,2610.1,3.4577399]
[1752022070508,0.00574647,2610.2,2610.1,6.9056878]
[1752022070912,0.00574647,2610.2,2610.1,5.8720079]
[1752022073217,0.00574647,2610.2,2610.1,2.42406]
[1752022073617,0.00574647,2610.2,2610.1,5.8720079]
[1752022074118,0.00574647,2610.2,2610.1,2.42406]
[1752022081023,0.67374647,2610.2,2610.1,2.42406]
[1752022081323,0.00574647,2610.2,2610.1,2.42406]
[1752022083923,0.00574647,2610.2,2610.1,7.1349079]
[1752022086728,0.00574647,2610.2,2610.1,5.8720079]
[1752022088429,0.67374647,2610.2,2610.1,5.8720079]
[1752022088631,0.00574647,2610.2,2610.1,5.8720079]
[1752022090432,0.67374647,2610.2,2610.1,5.8720079]
[1752022091135,0.67374647,2610.2,2610.1,2.42406]
[1752022092033,1.43977647,2610.2,2610.1,0.6836]
[1752022092239,0.67374647,2610.2,2610.1,1.44966]
[1752022092835,0.67374647,2610.2,2610.1,2.47326]
[1752022093138,0.67374647,2610.2,2610.1,3.76495119]
[1752022093637,0.67374647,2610.2,2610.1,7.21289909]
[1752022094339,0.00574647,2610.2,2610.1,7.21289909]
[1752022095237,0.67374647,2610.2,2610.1,7.21289909]
[1752022095429,0.00574647,2610.2,2610.1,7.21289909]
[1752022096238,0.67374647,2610.2,2610.1,7.21289909]
[1752022097735,1.3318,2610.5,2610.4,0.76598]
[1752022097939,0.76598,2610.4,2610.3,0.76599]
[1752022098242,2.08628,2610.4,2610.3,1.39719]
[1752022099443,1.3203,2610.4,2610.3,1.39719]